[Event "44th Chess Olympiad Open 2022"]
[Site "Chennai"]
[Date "2022.08.03"]
[Round "6.81"]
[White "Stetsenko, Ilya"]
[Black "da Conceicao, Marcos"]
[Result "1-0"]
[WhiteElo "1683"]
[BlackElo "1713"]
[Annotator "NA RC"]
[PlyCount "81"]
[EventDate "2022.??.??"]
[TimeControl "60"]

1. e4 {[%emt 0:00:05]} c5 {[%emt 0:00:22]} 2. Nf3 {[%emt 0:00:04]} Nc6 {
[%emt 0:00:37]} 3. d4 {[%emt 0:00:03]} cxd4 {[%emt 0:00:43]} 4. Nxd4 {[%emt 0:
00:00]} e5 {[%emt 0:00:49]} 5. Nb5 {[%emt 0:00:02]} d6 {[%emt 0:02:40]} 6. a4 {
[%emt 0:00:04]} a6 {[%emt 0:05:34]} 7. N5c3 {[%emt 0:00:52]} Nf6 {[%emt 0:00:
00]} 8. Bg5 {[%emt 0:00:05]} Qb6 {[%emt 0:01:25]} 9. Bxf6 {[%emt 0:12:00]} gxf6
{[%emt 0:00:58]} 10. Nd5 {[%emt 0:05:41]} Qd8 {[%emt 0:02:01]} 11. Bd3 {
[%emt 0:11:51]} Rg8 {[%emt 0:02:26]} 12. g3 {[%emt 0:16:35]} Nd4 {[%emt 0:00:
00]} 13. h3 {[%emt 0:15:39]} Bh6 {[%emt 0:08:10]} 14. c3 {[%emt 0:08:48]} Nc6 {
[%emt 0:00:26]} 15. Qh5 {[%emt 0:00:48]} Rg6 {[%emt 0:00:55]} 16. Na3 {[%emt 0:
00:00]} Be6 {[%emt 0:00:48]} 17. Nc2 {[%emt 0:00:28]} Bf8 {[%emt 0:05:38]} 18.
Qf3 {[%emt 0:03:27]} Bg7 {[%emt 0:02:58]} 19. Nce3 {[%emt 0:00:48]} Rc8 {
[%emt 0:12:19]} 20. b4 {[%emt 0:14:55]} Nb8 {[%emt 0:03:09]} 21. a5 {[%emt 0:
00:00]} Kf8 {[%emt 0:02:22]} 22. Rc1 {[%emt 0:03:29]} Kg8 {[%emt 0:02:05]} 23.
Nb6 {[%emt 0:00:28]} Rc6 {[%emt 0:01:24]} 24. Ned5 {[%emt 0:00:43]} Kh8 {
[%emt 0:01:10]} 25. c4 {[%emt 0:00:37]} Nd7 {[%emt 0:01:14]} 26. Nxd7 {[%emt 0:
00:00]} Qxd7 {[%emt 0:00:35]} 27. g4 {[%emt 0:00:37]} Bxd5 {[%emt 0:01:04]} 28.
exd5 {[%emt 0:00:11]} Rc7 {[%emt 0:00:46]} 29. Bxg6 {[%emt 0:00:08]} fxg6 {
[%emt 0:00:27]} 30. Ke2 {[%emt 0:00:57]} Qa4 {[%emt 0:00:37]} 31. Qc3 {[%emt 0:
00:00]} Qd7 {[%emt 0:01:57]} 32. Qb3 {[%emt 0:00:40]} Qe7 {[%emt 0:01:22]} 33.
Rhd1 {[%emt 0:00:27]} e4 {[%emt 0:02:33]} 34. c5 {[%emt 0:00:12]} Qe5 {[%emt 0:
00:00]} 35. cxd6 {[%emt 0:00:31]} Qxd6 {[%emt 0:01:24]} 36. Rxc7 {[%emt 0:00:
00]} Qxc7 {[%emt 0:00:18]} 37. d6 {[%emt 0:00:18]} Qd7 {[%emt 0:00:15]} 38. Qd5
{[%emt 0:00:35]} f5 {[%emt 0:00:39]} 39. gxf5 {[%emt 0:00:21]} gxf5 {[%emt 0:
00:00]} 40. Rc1 {[%emt 0:00:30]} Qd8 {[%emt 0:11:10]} 41. d7 {[%emt 0:30:44]}
1-0

[Event "44th Chess Olympiad Open 2022"]
[Site "Chennai"]
[Date "2022.08.03"]
[Round "6.81"]
[White "dos Reis, Tito"]
[Black "Van den Brink, Peter"]
[Result "0-1"]
[WhiteElo "1658"]
[BlackElo "2167"]
[Annotator "NA RC"]
[PlyCount "68"]
[EventDate "2022.??.??"]
[TimeControl "60"]

1. f4 {[%emt 0:00:08]} c5 {[%emt 0:00:33]} 2. Nf3 {[%emt 0:00:18]} g6 {[%emt 0:
00:00]} 3. c3 {[%emt 0:00:21]} Nf6 {[%emt 0:00:59]} 4. e3 {[%emt 0:00:26]} Bg7
{[%emt 0:00:19]} 5. d4 {[%emt 0:00:15]} O-O {[%emt 0:00:19]} 6. Bd3 {[%emt 0:
00:00]} d6 {[%emt 0:01:22]} 7. O-O {[%emt 0:00:19]} Nc6 {[%emt 0:01:29]} 8.
Nbd2 {[%emt 0:00:36]} e5 {[%emt 0:03:05]} 9. fxe5 {[%emt 0:05:33]} dxe5 {
[%emt 0:01:48]} 10. Ne4 {[%emt 0:02:05]} cxd4 {[%emt 0:09:18]} 11. Nxf6+ {
[%emt 0:01:24]} Bxf6 {[%emt 0:00:50]} 12. exd4 {[%emt 0:02:05]} exd4 {[%emt 0:
00:00]} 13. cxd4 {[%emt 0:00:49]} Bg4 {[%emt 0:19:14]} 14. h3 {[%emt 0:00:32]}
Bxd4+ {[%emt 0:06:16]} 15. Kh1 {[%emt 0:00:23]} Bxf3 {[%emt 0:00:55]} 16. Qxf3
{[%emt 0:01:12]} Ne5 {[%emt 0:01:14]} 17. Qd1 {[%emt 0:01:20]} Nxd3 {[%emt 0:
00:00]} 18. Qxd3 {[%emt 0:00:23]} Bg7 {[%emt 0:03:01]} 19. Qb3 {[%emt 0:00:22]}
b6 {[%emt 0:03:36]} 20. Bf4 {[%emt 0:00:24]} Qf6 {[%emt 0:07:02]} 21. Rf2 {
[%emt 0:00:58]} Rfe8 {[%emt 0:07:01]} 22. Raf1 {[%emt 0:00:35]} Qe6 {[%emt 0:
00:00]} 23. Qa4 {[%emt 0:03:32]} a6 {[%emt 0:06:25]} 24. b3 {[%emt 0:04:51]} b5
{[%emt 0:01:01]} 25. Qb4 {[%emt 0:00:34]} Rad8 {[%emt 0:01:12]} 26. Bd2 {
[%emt 0:03:10]} Rd4 {[%emt 0:05:51]} 27. Qa5 {[%emt 0:03:24]} f5 {[%emt 0:00:
00]} 28. Bc3 {[%emt 0:02:52]} Re4 {[%emt 0:01:16]} 29. Bxg7 {[%emt 0:01:29]}
Kxg7 {[%emt 0:00:04]} 30. Qc7+ {[%emt 0:00:52]} Re7 {[%emt 0:00:16]} 31. Qg3 {
[%emt 0:00:18]} Re3 {[%emt 0:00:25]} 32. Qg5 {[%emt 0:00:53]} Re1 {[%emt 0:00:
00]} 33. Rxf5 {[%emt 0:03:17]} Qxf5 {[%emt 0:00:17]} 34. Qxe7+ {[%emt 0:02:45]}
Rxe7 {[%emt 0:00:07]} 0-1

[Event "44th Chess Olympiad Open 2022"]
[Site "Chennai"]
[Date "2022.08.03"]
[Round "6.82"]
[White "Cisse, Amadou Lamine"]
[Black "Ahmad, Md Siraj Munir"]
[Result "1-0"]
[WhiteElo "2005"]
[BlackElo "2035"]
[Annotator "NA RC"]
[PlyCount "85"]
[EventDate "2022.??.??"]
[TimeControl "60"]

1. d4 {[%emt 0:00:12]} Nf6 {[%emt 0:00:35]} 2. c4 {[%emt 0:01:16]} d5 {[%emt 0:
00:00]} 3. Nf3 {[%emt 0:00:40]} e6 {[%emt 0:03:34]} 4. Nbd2 {[%emt 0:02:45]} c6
{[%emt 0:03:36]} 5. e3 {[%emt 0:00:50]} Nbd7 {[%emt 0:04:19]} 6. b3 {[%emt 0:
00:00]} Bd6 {[%emt 0:05:18]} 7. Bb2 {[%emt 0:01:06]} Ne4 {[%emt 0:04:05]} 8.
Nxe4 {[%emt 0:15:52]} dxe4 {[%emt 0:00:22]} 9. Nd2 {[%emt 0:00:06]} Bb4 {
[%emt 0:06:57]} 10. a3 {[%emt 0:02:24]} Bxd2+ {[%emt 0:01:18]} 11. Qxd2 {
[%emt 0:00:08]} O-O {[%emt 0:04:40]} 12. Qc2 {[%emt 0:03:32]} f5 {[%emt 0:00:
00]} 13. g4 {[%emt 0:12:20]} fxg4 {[%emt 0:24:18]} 14. O-O-O {[%emt 0:08:51]}
Nf6 {[%emt 0:08:40]} 15. Be2 {[%emt 0:04:35]} Bd7 {[%emt 0:02:45]} 16. Rdg1 {
[%emt 0:07:01]} h5 {[%emt 0:12:30]} 17. h3 {[%emt 0:00:31]} g5 {[%emt 0:03:23]}
18. h4 {[%emt 0:03:55]} gxh4 {[%emt 0:01:46]} 19. Rxh4 {[%emt 0:00:43]} Qe7 {
[%emt 0:01:49]} 20. Rxh5 {[%emt 0:04:10]} Nxh5 {[%emt 0:00:53]} 21. Bxg4 {
[%emt 0:00:08]} Ng7 {[%emt 0:00:47]} 22. d5 {[%emt 0:09:08]} e5 {[%emt 0:01:00]
} 23. Bxd7 {[%emt 0:01:57]} Qxd7 {[%emt 0:00:21]} 24. Bxe5 {[%emt 0:00:07]} Rf7
{[%emt 0:00:47]} 25. Qxe4 {[%emt 0:01:01]} cxd5 {[%emt 0:00:22]} 26. Qh4 {
[%emt 0:02:18]} Qf5 {[%emt 0:01:20]} 27. Rh1 {[%emt 0:01:09]} Nh5 {[%emt 0:00:
00]} 28. Qxh5 {[%emt 0:01:29]} Qxh5 {[%emt 0:00:01]} 29. Rxh5 {[%emt 0:00:02]}
Rh7 {[%emt 0:00:14]} 30. Rxh7 {[%emt 0:00:39]} Kxh7 {[%emt 0:00:02]} 31. cxd5 {
[%emt 0:00:17]} Kg6 {[%emt 0:00:11]} 32. e4 {[%emt 0:00:38]} Re8 {[%emt 0:00:
00]} 33. f4 {[%emt 0:00:17]} Kf7 {[%emt 0:00:57]} 34. Kd2 {[%emt 0:00:11]} Rg8
{[%emt 0:00:52]} 35. Bd4 {[%emt 0:04:55]} Rg2+ {[%emt 0:00:23]} 36. Kd3 {
[%emt 0:00:49]} Rg3+ {[%emt 0:00:17]} 37. Be3 {[%emt 0:00:19]} Ke7 {[%emt 0:00:
00]} 38. e5 {[%emt 0:00:17]} b5 {[%emt 0:00:20]} 39. Ke4 {[%emt 0:00:27]} a5 {
[%emt 0:00:15]} 40. Bc5+ {[%emt 0:02:50]} Ke8 {[%emt 0:00:02]} 41. e6 {[%emt 0:
00:00]} Rxb3 {[%emt 0:30:27]} 42. d6 {[%emt 0:00:30]} b4 {[%emt 0:00:42]} 43.
d7+ {[%emt 0:00:31]} 1-0

[Event "44th Chess Olympiad Open 2022"]
[Site "Chennai"]
[Date "2022.08.03"]
[Round "6.82"]
[White "Wane, Al Hassane"]
[Black "Sharikhan, Shawal"]
[Result "1/2-1/2"]
[WhiteElo "1750"]
[BlackElo "1789"]
[Annotator "NA RC"]
[PlyCount "87"]
[EventDate "2022.??.??"]
[TimeControl "60"]

1. d4 {[%emt 0:02:19]} Nf6 {[%emt 0:00:15]} 2. c4 {[%emt 0:00:19]} e6 {[%emt 0:
00:00]} 3. Nc3 {[%emt 0:00:09]} Bb4 {[%emt 0:00:20]} 4. a3 {[%emt 0:00:24]}
Bxc3+ {[%emt 0:00:06]} 5. bxc3 {[%emt 0:00:11]} c5 {[%emt 0:00:40]} 6. Nf3 {
[%emt 0:00:19]} b6 {[%emt 0:01:12]} 7. Bf4 {[%emt 0:00:32]} d5 {[%emt 0:01:50]}
8. e3 {[%emt 0:00:14]} O-O {[%emt 0:01:23]} 9. Bd3 {[%emt 0:00:14]} Bb7 {
[%emt 0:01:10]} 10. dxc5 {[%emt 0:00:25]} bxc5 {[%emt 0:00:55]} 11. Rb1 {
[%emt 0:00:35]} Ba6 {[%emt 0:13:31]} 12. Qa4 {[%emt 0:04:30]} Bxc4 {[%emt 0:00:
00]} 13. Bxc4 {[%emt 0:00:34]} dxc4 {[%emt 0:00:06]} 14. Qxc4 {[%emt 0:00:30]}
Qd5 {[%emt 0:03:12]} 15. Qe2 {[%emt 0:07:30]} Nbd7 {[%emt 0:04:53]} 16. O-O {
[%emt 0:00:31]} e5 {[%emt 0:04:36]} 17. Rfd1 {[%emt 0:01:37]} Qe6 {[%emt 0:00:
00]} 18. Bg3 {[%emt 0:02:51]} Ne4 {[%emt 0:05:25]} 19. Qd3 {[%emt 0:02:19]}
Nxg3 {[%emt 0:01:14]} 20. hxg3 {[%emt 0:01:36]} Nb6 {[%emt 0:06:39]} 21. Ng5 {
[%emt 0:02:08]} Qg6 {[%emt 0:01:12]} 22. Qxg6 {[%emt 0:02:08]} hxg6 {[%emt 0:
00:00]} 23. Rb5 {[%emt 0:09:21]} Rac8 {[%emt 0:05:42]} 24. Ne4 {[%emt 0:02:05]}
Na4 {[%emt 0:09:40]} 25. Ra5 {[%emt 0:02:59]} Nb2 {[%emt 0:00:37]} 26. Rb1 {
[%emt 0:00:58]} Nd3 {[%emt 0:02:49]} 27. Rxa7 {[%emt 0:00:29]} Rb8 {[%emt 0:00:
00]} 28. Rxb8 {[%emt 0:05:39]} Rxb8 {[%emt 0:00:19]} 29. a4 {[%emt 0:02:37]} f6
{[%emt 0:06:39]} 30. a5 {[%emt 0:04:09]} Rb1+ {[%emt 0:03:07]} 31. Kh2 {
[%emt 0:01:50]} Ra1 {[%emt 0:00:11]} 32. g4 {[%emt 0:07:49]} Ra2 {[%emt 0:00:
00]} 33. a6 {[%emt 0:02:50]} Nxf2 {[%emt 0:04:16]} 34. Nxf2 {[%emt 0:00:54]}
Rxf2 {[%emt 0:03:26]} 35. Rb7 {[%emt 0:02:03]} Ra2 {[%emt 0:00:10]} 36. a7 {
[%emt 0:00:03]} Kh7 {[%emt 0:00:16]} 37. Kg3 {[%emt 0:00:39]} Kh6 {[%emt 0:00:
00]} 38. Kf3 {[%emt 0:03:16]} f5 {[%emt 0:01:28]} 39. g3 {[%emt 0:00:26]} Ra4 {
[%emt 0:03:17]} 40. gxf5 {[%emt 0:01:59]} gxf5 {[%emt 0:00:19]} 41. c4 {
[%emt 0:30:06]} g6 {[%emt 0:31:00]} 42. Rc7 {[%emt 0:01:35]} Kg5 {[%emt 0:00:
00]} 43. e4 {[%emt 0:03:05]} Ra3+ {[%emt 0:00:00]} 44. Kf2 {[%emt 0:00:00]}
1/2-1/2

[Event "44th Chess Olympiad Open 2022"]
[Site "Chennai"]
[Date "2022.08.03"]
[Round "6.83"]
[White "Bah, Ebrima"]
[Black "Fancy, Stuart"]
[Result "1/2-1/2"]
[WhiteElo "2078"]
[BlackElo "1984"]
[Annotator "NA RC"]
[PlyCount "106"]
[EventDate "2022.??.??"]
[TimeControl "60"]

1. e4 {[%emt 0:00:15]} c5 {[%emt 0:01:28]} 2. Nf3 {[%emt 0:00:38]} e6 {[%emt 0:
00:00]} 3. d4 {[%emt 0:00:58]} cxd4 {[%emt 0:00:04]} 4. Nxd4 {[%emt 0:00:19]}
Nf6 {[%emt 0:00:11]} 5. Bd3 {[%emt 0:00:40]} e5 {[%emt 0:00:53]} 6. Nf3 {
[%emt 0:01:59]} Nc6 {[%emt 0:00:34]} 7. O-O {[%emt 0:00:43]} Be7 {[%emt 0:00:
00]} 8. c3 {[%emt 0:01:02]} O-O {[%emt 0:00:53]} 9. Bg5 {[%emt 0:01:00]} a6 {
[%emt 0:01:11]} 10. Nbd2 {[%emt 0:00:31]} b5 {[%emt 0:00:53]} 11. a4 {[%emt 0:
00:00]} b4 {[%emt 0:00:44]} 12. Qe2 {[%emt 0:00:51]} Qc7 {[%emt 0:02:54]} 13.
Rfc1 {[%emt 0:02:30]} Qb8 {[%emt 0:01:23]} 14. Nh4 {[%emt 0:04:10]} h6 {
[%emt 0:02:12]} 15. Bxf6 {[%emt 0:02:04]} Bxf6 {[%emt 0:00:06]} 16. Nf5 {
[%emt 0:00:14]} bxc3 {[%emt 0:00:54]} 17. bxc3 {[%emt 0:00:28]} d6 {[%emt 0:00:
00]} 18. Qf3 {[%emt 0:02:01]} Bg5 {[%emt 0:02:41]} 19. Rcb1 {[%emt 0:00:12]}
Qc7 {[%emt 0:00:17]} 20. Nc4 {[%emt 0:01:19]} Bxf5 {[%emt 0:00:31]} 21. exf5 {
[%emt 0:01:36]} Rab8 {[%emt 0:04:02]} 22. f6 {[%emt 0:02:41]} Bxf6 {[%emt 0:00:
00]} 23. Qf5 {[%emt 0:00:58]} Rfd8 {[%emt 0:00:13]} 24. Ne3 {[%emt 0:01:28]}
Ne7 {[%emt 0:00:30]} 25. Qh7+ {[%emt 0:00:53]} Kf8 {[%emt 0:00:03]} 26. Qh8+ {
[%emt 0:01:12]} Ng8 {[%emt 0:00:04]} 27. Nd5 {[%emt 0:01:15]} Rxb1+ {[%emt 0:
00:00]} 28. Rxb1 {[%emt 0:00:25]} Qa5 {[%emt 0:00:12]} 29. c4 {[%emt 0:00:41]}
e4 {[%emt 0:03:50]} 30. Bxe4 {[%emt 0:06:54]} Re8 {[%emt 0:00:14]} 31. f3 {
[%emt 0:01:41]} Bd4+ {[%emt 0:00:30]} 32. Kh1 {[%emt 0:02:46]} f5 {[%emt 0:00:
00]} 33. Nc7 {[%emt 0:00:28]} Qxc7 {[%emt 0:00:32]} 34. Bd5 {[%emt 0:00:40]}
Ke7 {[%emt 0:02:31]} 35. Re1+ {[%emt 0:00:42]} Kd7 {[%emt 0:11:28]} 36. Rxe8 {
[%emt 0:04:02]} Kxe8 {[%emt 0:03:33]} 37. Qxg8+ {[%emt 0:00:04]} Kd7 {[%emt 0:
00:00]} 38. Qe6+ {[%emt 0:02:20]} Kd8 {[%emt 0:00:07]} 39. Qxf5 {[%emt 0:01:59]
} Qd7 {[%emt 0:02:16]} 40. Qe4 {[%emt 0:04:53]} Bf6 {[%emt 0:01:25]} 41. Bc6 {
[%emt 0:30:32]} Qe7 {[%emt 0:30:10]} 42. Qb1 {[%emt 0:01:31]} Qc7 {[%emt 0:00:
00]} 43. Bd5 {[%emt 0:00:52]} Qa5 {[%emt 0:03:34]} 44. Qb8+ {[%emt 0:01:09]}
Kd7 {[%emt 0:00:08]} 45. Qb7+ {[%emt 0:02:25]} Kd8 {[%emt 0:00:12]} 46. Qa8+ {
[%emt 0:00:56]} Ke7 {[%emt 0:01:27]} 47. Qb7+ {[%emt 0:02:47]} Kd8 {[%emt 0:00:
00]} 48. Qb8+ {[%emt 0:05:44]} Kd7 {[%emt 0:00:32]} 49. Qa7+ {[%emt 0:00:55]}
Kd8 {[%emt 0:00:26]} 50. g3 {[%emt 0:02:22]} Qxa4 {[%emt 0:03:09]} 51. Qa8+ {
[%emt 0:01:03]} Kd7 {[%emt 0:00:12]} 52. Qb7+ {[%emt 0:00:38]} Kd8 {[%emt 0:00:
00]} 53. Qb8+ {[%emt 0:02:26]} Kd7 {[%emt 0:00:45]} 1/2-1/2

[Event "44th Chess Olympiad Open 2022"]
[Site "Chennai"]
[Date "2022.08.03"]
[Round "6.83"]
[White "McCoy, Tom"]
[Black "Dalliah, Joseph"]
[Result "1/2-1/2"]
[WhiteElo "1812"]
[BlackElo "1920"]
[Annotator "NA RC"]
[PlyCount "110"]
[EventDate "2022.??.??"]
[TimeControl "60"]

1. e4 {[%emt 0:01:58]} e5 {[%emt 0:00:10]} 2. Nc3 {[%emt 0:00:12]} Nf6 {
[%emt 0:00:24]} 3. Bc4 {[%emt 0:00:47]} Bc5 {[%emt 0:00:54]} 4. Nf3 {[%emt 0:
00:00]} d6 {[%emt 0:00:37]} 5. h3 {[%emt 0:00:30]} Nc6 {[%emt 0:01:09]} 6. O-O
{[%emt 0:00:32]} O-O {[%emt 0:00:18]} 7. d3 {[%emt 0:00:20]} Be6 {[%emt 0:00:
00]} 8. Bb3 {[%emt 0:00:24]} h6 {[%emt 0:00:43]} 9. Na4 {[%emt 0:00:54]} Bb4 {
[%emt 0:00:50]} 10. Nc3 {[%emt 0:00:45]} d5 {[%emt 0:00:48]} 11. exd5 {[%emt 0:
00:00]} Nxd5 {[%emt 0:00:18]} 12. Bd2 {[%emt 0:01:56]} Nxc3 {[%emt 0:04:01]}
13. bxc3 {[%emt 0:01:21]} Bd6 {[%emt 0:00:31]} 14. Bxe6 {[%emt 0:03:36]} fxe6 {
[%emt 0:00:14]} 15. Qe2 {[%emt 0:01:15]} Qf6 {[%emt 0:00:34]} 16. Rab1 {
[%emt 0:01:19]} Rab8 {[%emt 0:00:52]} 17. Qe4 {[%emt 0:00:38]} Qf5 {[%emt 0:00:
00]} 18. Qe3 {[%emt 0:04:28]} a6 {[%emt 0:01:39]} 19. Rfe1 {[%emt 0:02:21]} Rf6
{[%emt 0:02:52]} 20. Qe4 {[%emt 0:13:59]} Qxe4 {[%emt 0:01:54]} 21. Rxe4 {
[%emt 0:00:23]} b6 {[%emt 0:01:54]} 22. Rbe1 {[%emt 0:01:35]} Rbf8 {[%emt 0:00:
00]} 23. R1e2 {[%emt 0:01:42]} b5 {[%emt 0:03:25]} 24. d4 {[%emt 0:03:07]} exd4
{[%emt 0:01:28]} 25. cxd4 {[%emt 0:00:20]} Kf7 {[%emt 0:02:42]} 26. Ne5+ {
[%emt 0:08:11]} Bxe5 {[%emt 0:00:14]} 27. dxe5 {[%emt 0:00:11]} Rg6 {[%emt 0:
00:00]} 28. a4 {[%emt 0:06:30]} Rd8 {[%emt 0:01:24]} 29. axb5 {[%emt 0:00:39]}
axb5 {[%emt 0:00:13]} 30. Kh2 {[%emt 0:00:50]} Nd4 {[%emt 0:02:00]} 31. R2e3 {
[%emt 0:04:59]} Nxc2 {[%emt 0:09:15]} 32. Rf3+ {[%emt 0:00:30]} Kg8 {[%emt 0:
00:00]} 33. Ba5 {[%emt 0:00:51]} Rd4 {[%emt 0:12:01]} 34. Rxd4 {[%emt 0:03:46]}
Nxd4 {[%emt 0:00:30]} 35. Rd3 {[%emt 0:00:33]} c5 {[%emt 0:03:09]} 36. f4 {
[%emt 0:07:36]} Nc6 {[%emt 0:02:00]} 37. Bb6 {[%emt 0:02:56]} c4 {[%emt 0:00:
00]} 38. Rd6 {[%emt 0:08:59]} Nb4 {[%emt 0:01:46]} 39. Ba5 {[%emt 0:01:54]} Nd5
{[%emt 0:00:21]} 40. Bd2 {[%emt 0:01:13]} c3 {[%emt 0:02:59]} 41. Bc1 {[%emt 0:
00:00]} b4 {[%emt 0:32:18]} 42. f5 {[%emt 0:00:00]} Rg5 {[%emt 0:00:00]} 43. g4
{[%emt 0:00:00]} b3 {[%emt 0:00:00]} 44. Rxe6 {[%emt 0:00:00]} b2 {[%emt 0:00:
00]} 45. Bxb2 {[%emt 0:00:00]} cxb2 {[%emt 0:00:03]} 46. Re8+ {[%emt 0:00:07]}
Kf7 {[%emt 0:00:18]} 47. Rb8 {[%emt 0:00:13]} h5 {[%emt 0:00:00]} 48. Kg3 {
[%emt 0:00:00]} hxg4 {[%emt 0:03:22]} 49. hxg4 {[%emt 0:03:30]} Ne3 {[%emt 0:
00:00]} 50. Kf4 {[%emt 0:03:03]} Rxg4+ {[%emt 0:00:38]} 51. Kxe3 {[%emt 0:00:
00]} Rg2 {[%emt 0:00:00]} 52. Rb7+ {[%emt 0:00:00]} Ke8 {[%emt 0:00:00]} 53.
Kd4 {[%emt 0:00:00]} Rf2 {[%emt 0:00:00]} 54. Ke4 {[%emt 0:00:00]} Kf8 {
[%emt 0:00:00]} 55. e6 {[%emt 0:00:00]} Ke8 {[%emt 0:00:03]} 1/2-1/2

[Event "44th Chess Olympiad Open 2022"]
[Site "Chennai"]
[Date "2022.08.03"]
[Round "6.83"]
[White "Garber, Ousainou"]
[Black "Jones, Rupert"]
[Result "1/2-1/2"]
[WhiteElo "1772"]
[BlackElo "1766"]
[Annotator "NA RC"]
[PlyCount "146"]
[EventDate "2022.??.??"]
[TimeControl "60"]

1. d4 {[%emt 0:00:13]} Nf6 {[%emt 0:02:54]} 2. e3 {[%emt 0:00:32]} g6 {[%emt 0:
00:00]} 3. c4 {[%emt 0:01:00]} Bg7 {[%emt 0:00:33]} 4. Nc3 {[%emt 0:00:16]} d6
{[%emt 0:00:55]} 5. Nf3 {[%emt 0:00:30]} O-O {[%emt 0:01:01]} 6. Be2 {[%emt 0:
00:00]} Nbd7 {[%emt 0:00:57]} 7. O-O {[%emt 0:00:31]} e5 {[%emt 0:03:36]} 8. d5
{[%emt 0:03:36]} a5 {[%emt 0:05:12]} 9. e4 {[%emt 0:01:57]} Nc5 {[%emt 0:04:24]
} 10. Nd2 {[%emt 0:01:39]} Ne8 {[%emt 0:01:58]} 11. f4 {[%emt 0:01:39]} f5 {
[%emt 0:00:18]} 12. exf5 {[%emt 0:07:08]} Bxf5 {[%emt 0:06:39]} 13. fxe5 {
[%emt 0:01:45]} Bxe5 {[%emt 0:00:43]} 14. Nf3 {[%emt 0:00:23]} Bg7 {[%emt 0:00:
00]} 15. Bg5 {[%emt 0:00:45]} Qc8 {[%emt 0:07:37]} 16. Nd4 {[%emt 0:01:11]} Bd7
{[%emt 0:01:51]} 17. Qd2 {[%emt 0:03:11]} Bg4 {[%emt 0:06:54]} 18. Rxf8+ {
[%emt 0:01:56]} Bxf8 {[%emt 0:00:30]} 19. Bxg4 {[%emt 0:00:55]} Qxg4 {[%emt 0:
00:00]} 20. Rf1 {[%emt 0:00:32]} Bg7 {[%emt 0:04:39]} 21. Bf4 {[%emt 0:02:59]}
Nf6 {[%emt 0:09:25]} 22. h3 {[%emt 0:01:36]} Qd7 {[%emt 0:00:06]} 23. Ndb5 {
[%emt 0:04:16]} Re8 {[%emt 0:02:54]} 24. a3 {[%emt 0:00:52]} b6 {[%emt 0:00:29]
} 25. b4 {[%emt 0:00:25]} axb4 {[%emt 0:00:13]} 26. axb4 {[%emt 0:00:50]} Nce4
{[%emt 0:00:36]} 27. Nxe4 {[%emt 0:01:10]} Nxe4 {[%emt 0:01:26]} 28. Qd3 {
[%emt 0:00:25]} Nf6 {[%emt 0:11:28]} 29. Nd4 {[%emt 0:01:26]} Nh5 {[%emt 0:00:
00]} 30. Bg5 {[%emt 0:01:36]} Be5 {[%emt 0:02:50]} 31. Ne6 {[%emt 0:00:44]} Ng7
{[%emt 0:00:13]} 32. Nd4 {[%emt 0:01:50]} Rf8 {[%emt 0:04:15]} 33. Rxf8+ {
[%emt 0:01:59]} Kxf8 {[%emt 0:00:02]} 34. Nc6 {[%emt 0:00:40]} Qe8 {[%emt 0:00:
00]} 35. Qf3+ {[%emt 0:04:04]} Qf7 {[%emt 0:02:58]} 36. Bh6 {[%emt 0:09:51]}
Qxf3 {[%emt 0:01:06]} 37. Bxg7+ {[%emt 0:00:27]} Bxg7 {[%emt 0:01:13]} 38. gxf3
{[%emt 0:00:14]} Ke8 {[%emt 0:01:38]} 39. Kg2 {[%emt 0:01:00]} Bf6 {[%emt 0:00:
00]} 40. Kf2 {[%emt 0:00:37]} Kf7 {[%emt 0:00:39]} 41. f4 {[%emt 0:31:44]} h6 {
[%emt 0:36:22]} 42. Kf3 {[%emt 0:00:18]} Ke8 {[%emt 0:00:00]} 43. Ke4 {[%emt 0:
00:00]} Bb2 {[%emt 0:00:00]} 44. f5 {[%emt 0:00:00]} g5 {[%emt 0:00:00]} 45. b5
{[%emt 0:00:00]} Bf6 {[%emt 0:00:00]} 46. Nb4 {[%emt 0:00:00]} Ke7 {[%emt 0:00:
00]} 47. Na6 {[%emt 0:00:00]} Kd7 {[%emt 0:00:00]} 48. Kf3 {[%emt 0:00:00]} h5
{[%emt 0:00:00]} 49. Nb4 {[%emt 0:00:00]} Ke7 {[%emt 0:00:00]} 50. Nd3 {
[%emt 0:00:00]} Kf7 {[%emt 0:00:00]} 51. Nf2 {[%emt 0:00:00]} Ke7 {[%emt 0:00:
00]} 52. Ke4 {[%emt 0:00:00]} Kf7 {[%emt 0:00:00]} 53. Nd3 {[%emt 0:00:00]} Ke7
{[%emt 0:00:00]} 54. Nb4 {[%emt 0:00:00]} Ke8 {[%emt 0:00:00]} 55. Na6 {
[%emt 0:00:00]} Kd8 {[%emt 0:00:00]} 56. Nb8 {[%emt 0:00:00]} Ke7 {[%emt 0:00:
00]} 57. Nc6+ {[%emt 0:00:00]} Kf7 {[%emt 0:00:00]} 58. Nb4 {[%emt 0:00:00]}
Ke7 {[%emt 0:00:00]} 59. Nd3 {[%emt 0:00:00]} Kf7 {[%emt 0:00:00]} 60. Nc1 {
[%emt 0:00:00]} Ke7 {[%emt 0:00:00]} 61. Ne2 {[%emt 0:00:00]} Be5 {[%emt 0:00:
00]} 62. Ng1 {[%emt 0:00:00]} Bf6 {[%emt 0:00:00]} 63. Nf3 {[%emt 0:00:00]} Kf7
{[%emt 0:00:00]} 64. Ne1 {[%emt 0:00:00]} Ke7 {[%emt 0:00:00]} 65. Nd3 {
[%emt 0:00:00]} Kf7 {[%emt 0:00:00]} 66. Nb4 {[%emt 0:00:23]} Ke7 {[%emt 0:00:
00]} 67. Nc6+ {[%emt 0:03:08]} Kf7 {[%emt 0:00:00]} 68. Nb4 {[%emt 0:01:26]}
Ke7 {[%emt 0:00:00]} 69. Na6 {[%emt 0:00:49]} Kd7 {[%emt 0:00:00]} 70. Nb4 {
[%emt 0:00:12]} Ke7 {[%emt 0:00:00]} 71. Nc6+ {[%emt 0:00:35]} Kf7 {[%emt 0:00:
00]} 72. Nb4 {[%emt 0:00:25]} Ke7 {[%emt 0:00:00]} 73. Na6 {[%emt 0:00:54]} Kd7
{[%emt 0:00:00]} 1/2-1/2

[Event "44th Chess Olympiad Open 2022"]
[Site "Chennai"]
[Date "2022.08.03"]
[Round "6.84"]
[White "Koumba, Mounguen Jose Evrar"]
[Black "Khan, Taffin"]
[Result "0-1"]
[WhiteElo "1942"]
[BlackElo "2019"]
[Annotator "NA RC"]
[PlyCount "58"]
[EventDate "2022.??.??"]
[TimeControl "60"]

1. e4 {[%emt 0:00:04]} c5 {[%emt 0:00:04]} 2. Nf3 {[%emt 0:00:07]} e6 {[%emt 0:
00:00]} 3. d4 {[%emt 0:00:13]} cxd4 {[%emt 0:00:08]} 4. Nxd4 {[%emt 0:00:08]}
a6 {[%emt 0:00:15]} 5. Nc3 {[%emt 0:00:49]} Qc7 {[%emt 0:00:13]} 6. Be2 {
[%emt 0:00:50]} Nc6 {[%emt 0:03:06]} 7. O-O {[%emt 0:00:47]} Nf6 {[%emt 0:00:
00]} 8. a3 {[%emt 0:04:21]} b5 {[%emt 0:03:49]} 9. Kh1 {[%emt 0:01:33]} Bb7 {
[%emt 0:00:23]} 10. Bg5 {[%emt 0:00:20]} Be7 {[%emt 0:05:35]} 11. f4 {[%emt 0:
00:00]} h6 {[%emt 0:08:28]} 12. Bxf6 {[%emt 0:08:59]} gxf6 {[%emt 0:03:39]} 13.
Bh5 {[%emt 0:03:14]} Nxd4 {[%emt 0:01:09]} 14. Qxd4 {[%emt 0:01:58]} Qc5 {
[%emt 0:00:47]} 15. Qd1 {[%emt 0:01:01]} Rg8 {[%emt 0:02:13]} 16. f5 {[%emt 0:
00:00]} Qe5 {[%emt 0:00:36]} 17. Qf3 {[%emt 0:11:42]} Rg5 {[%emt 0:01:13]} 18.
Qh3 {[%emt 0:00:59]} Bd6 {[%emt 0:08:45]} 19. Bf3 {[%emt 0:10:45]} Ke7 {
[%emt 0:00:13]} 20. Rae1 {[%emt 0:04:25]} h5 {[%emt 0:02:02]} 21. Nd5+ {
[%emt 0:05:14]} Kd8 {[%emt 0:21:41]} 22. fxe6 {[%emt 0:08:28]} fxe6 {[%emt 0:
00:00]} 23. Nxf6 {[%emt 0:02:14]} Kc7 {[%emt 0:04:52]} 24. Nxh5 {[%emt 0:07:49]
} Rh8 {[%emt 0:02:38]} 25. g4 {[%emt 0:00:21]} Rf8 {[%emt 0:00:34]} 26. Rf2 {
[%emt 0:03:17]} Qxb2 {[%emt 0:04:24]} 27. Qh4 {[%emt 0:04:39]} Qe5 {[%emt 0:00:
00]} 28. Qg3 {[%emt 0:01:33]} Qc3 {[%emt 0:01:17]} 29. e5 {[%emt 0:03:32]}
Qxe1+ {[%emt 0:00:27]} 0-1